bitfinex-derivatives/quotes_ETHF0:USTF0_20250329
["timestamp","ask_amount","ask_price","bid_price","bid_amount"]
[1743213597743,1.443,1909.9,1909.8,4.25549]
[1743213597937,2.8597,1909.9,1909.8,5.58839]
[1743213598650,2.8597,1909.9,1909.8,4.5407]
[1743213598943,2.8597,1909.9,1909.8,1.3329]
[1743213600546,3.2078,1910.5,1909.8,4.5407]
[1743213600747,1.431,1910.3,1910.2,1.04751]
[1743213600946,1.4118,1910.4,1910.2,1.04751]
[1743213601145,2.7927,1910.4,1910.3,0.722]
[1743213601344,2.7927,1910.4,1910.3,2.1316]
[1743213601547,2.7927,1910.4,1910.3,2.8425]
[1743213601950,2.7927,1910.4,1910.3,3.88995]
[1743213602148,2.7927,1910.4,1910.3,2.8425]
[1743213602347,2.7927,1910.4,1910.3,3.88995]
[1743213602850,3.2078,1910.9,1910.3,2.8425]
[1743213603051,1.3809,1910.8,1910.7,1.04721]
[1743213603446,3.2078,1911.3,1910.7,0.7109]
[1743213603647,72.98294107,1912.1,1911.1,1.04702]
[1743213603648,1.3809,1911.2,1911.1,1.04702]
[1743213604058,1.388,1911.4,1911.2,1.04694]
[1743213604256,2.0704,1911.4,1911.2,0.6889]
[1743213604452,1.04691,1911.3,1911.2,0.6889]
[1743213604652,1.3548,1911.3,1910.9,3.37]
[1743213604955,1.04702,1911.1,1910.7,4.25501]
[1743213605155,3.8768,1911.2,1910.7,3.2078]
[1743213605156,3.09231,1911.0,1910.7,3.2078]
[1743213605753,2.0452,1911.0,1910.7,3.2078]
[1743213606353,2.0452,1911.0,1910.9,1.04712]
[1743213606558,2.0452,1911.0,1910.8,1.04714]
[1743213607148,1.3548,1911.0,1910.9,1.04712]
[1743213607358,0.7,1911.3,1911.1,1.04702]
[1743213607663,2.1163,1911.3,1911.0,0.6947]
[1743213608058,1.4163,1911.3,1911.1,1.047]
[1743213608459,0.7,1911.6,1911.2,1.04696]
[1743213608662,1.4163,1911.5,1911.2,3.369]
[1743213608856,2.4631,1911.5,1911.2,3.369]
[1743213609056,1.4163,1911.5,1911.2,3.369]
[1743213609456,1.04695,1911.3,1911.0,3.369]
[1743213609764,2.1163,1911.2,1911.0,3.369]
[1743213610273,5.3241,1911.2,1911.0,3.369]
[1743213610466,1.04702,1911.1,1911.0,3.369]
[1743213610671,1.3973,1911.1,1911.0,3.369]
[1743213614281,1.3973,1911.1,1910.8,3.369]
[1743213614579,1.3973,1911.1,1910.8,4.41617]
[1743213615676,1.3973,1911.1,1910.8,4.41616]
[1743213616068,1.3973,1911.1,1910.8,3.369]
[1743213616069,2.44433,1911.1,1910.8,3.369]
[1743213616478,1.3973,1911.1,1910.8,3.369]
[1743213616678,2.44434,1911.1,1910.8,3.369]
[1743213617080,1.3973,1911.1,1910.8,3.369]
[1743213617680,4.25469,1911.4,1910.9,4.25492]
[1743213617982,4.6422,1911.4,1910.9,3.2078]
[1743213618184,1.04693,1911.3,1911.0,1.3818]
[1743213618383,4.25467,1911.4,1911.0,1.3818]
[1743213618570,1.04687,1911.4,1911.1,1.74841]
[1743213618880,3.1475,1911.5,1911.2,2.42874]
[1743213619084,2.1007,1911.5,1911.2,2.42874]
[1743213619287,3.1475,1911.5,1911.2,2.42874]
[1743213619484,3.1475,1911.5,1911.2,2.0508]
[1743213619781,3.1475,1911.5,1911.2,3.09773]
[1743213620279,2.1007,1911.5,1911.2,3.09773]
[1743213620485,3.14752,1911.5,1911.2,2.0508]
[1743213620887,3.1475,1911.5,1911.2,3.09774]
[1743213621184,2.1007,1911.5,1911.2,3.09774]
[1743213621787,3.14751,1911.5,1911.2,3.09774]
[1743213622177,2.1007,1911.5,1911.2,3.09774]
[1743213622487,3.14751,1911.5,1911.2,3.09774]
[1743213623170,3.14751,1911.5,1911.2,3.09776]
[1743213623579,1.04685,1911.4,1911.2,2.0508]
[1743213623786,2.48601,1911.3,1911.2,1.3818]
[1743213624173,1.4391,1911.3,1911.2,1.3818]
[1743213624583,1.4391,1911.3,1911.2,2.42876]
[1743213625884,1.4391,1911.3,1911.2,1.3818]
[1743213626784,1.4391,1911.3,1911.2,2.42876]
[1743213627591,1.71313,1911.5,1911.2,2.42876]
[1743213627786,1.04685,1911.4,1911.3,1.3744]
[1743213627994,2.37675,1911.4,1911.3,1.3744]
[1743213628992,1.3299,1911.4,1911.3,1.3744]
[1743213629191,2.37675,1911.4,1911.3,1.3744]
[1743213630789,2.0336,1911.4,1911.1,8.32419]
[1743213630988,1.4233,1911.3,1910.9,3.2078]
[1743213631293,1.04704,1911.1,1910.9,4.25492]
[1743213631585,1.4233,1911.0,1910.9,5.67862]
[1743213631889,2.47037,1911.0,1910.9,4.6315]
[1743213632084,1.04714,1910.9,1910.7,4.97112]
[1743213632291,2.41634,1910.9,1910.7,8.7098]
[1743213632686,2.41638,1910.8,1910.7,8.7098]
[1743213633191,2.41638,1910.8,1910.7,4.7859]
[1743213634189,2.41638,1910.8,1910.7,9.04093]
[1743213634190,1.3692,1910.8,1910.7,9.04093]
[1743213634794,2.41638,1910.8,1910.7,1.4179]
[1743213635493,1.04723,1910.7,1910.6,0.00785094]
[1743213635690,2.47553,1910.7,1910.6,0.00785094]
[1743213635886,2.47553,1910.7,1910.6,1.39315094]
[1743213636089,1.4283,1910.7,1910.6,1.39315094]
[1743213636695,2.47553,1910.7,1910.6,1.39315094]
[1743213639093,1.4283,1910.7,1910.6,1.39315094]
[1743213643707,1.4283,1910.7,1910.6,4.60095094]
[1743213644106,1.4283,1910.7,1910.6,5.64824094]
[1743213644302,1.4283,1910.7,1910.6,6.36264094]
[1743213645000,1.4283,1910.7,1910.6,5.31535094]
[1743213645598,1.4283,1910.7,1910.6,6.36264094]
[1743213646199,1.4283,1910.7,1910.6,4.60095094]
[1743213646507,2.47553,1910.7,1910.6,4.60095094]
[1743213646806,2.47553,1910.7,1910.6,1.39315094]
[1743213647407,1.4283,1910.7,1910.6,1.39315094]
[1743213647610,1.4283,1910.7,1910.6,2.44044094]
[1743213647907,2.1162,1910.7,1910.6,2.44044094]
[1743213648405,2.1162,1910.7,1910.6,1.39315094]
[1743213649002,3.16343,1910.7,1910.6,1.39315094]
[1743213649204,3.16343,1910.7,1910.6,0.00785094]
[1743213650203,3.16343,1910.7,1910.6,1.39755094]
[1743213652005,2.1162,1910.7,1910.6,2.44484094]
[1743213652601,2.1162,1910.7,1910.6,1.39755094]
[1743213653914,3.16343,1910.7,1910.6,1.39755094]
[1743213654510,2.1162,1910.7,1910.6,1.39755094]
[1743213655313,3.16343,1910.7,1910.6,1.39755094]
[1743213656516,2.1162,1910.7,1910.6,1.39755094]
[1743213656708,3.16343,1910.7,1910.6,1.39755094]
[1743213656913,2.1162,1910.7,1910.6,1.39755094]
[1743213657112,2.1162,1910.7,1910.6,2.44484094]
[1743213657705,2.1162,1910.7,1910.6,1.39755094]
[1743213658518,0.7326,1911.0,1910.6,5.65264094]
[1743213658720,0.7326,1911.0,1910.8,4.25496]
[1743213659106,2.1833,1911.0,1910.9,1.3384]
[1743213659910,2.1833,1911.0,1910.9,2.38552]
[1743213662612,3.23037,1911.0,1910.9,1.3384]
[1743213663418,2.1833,1911.0,1910.6,3.89025094]
[1743213663617,1.04723,1910.8,1910.6,2.44921094]
[1743213663923,3.20243,1910.7,1910.6,0.00785094]
[1743213666123,3.20243,1910.7,1910.6,1.43125094]
[1743213666419,2.1552,1910.7,1910.6,1.43125094]
[1743213666720,3.20243,1910.7,1910.6,1.43125094]
[1743213666918,2.1552,1910.7,1910.6,2.47854094]
[1743213669220,2.1552,1910.7,1910.6,1.43125094]
[1743213669915,3.20243,1910.7,1910.6,1.43125094]
[1743213670120,2.1552,1910.7,1910.6,1.43125094]
[1743213670624,3.20243,1910.7,1910.6,0.00785094]
[1743213670820,7.9811,1910.7,1910.2,7.924]
[1743213671015,1.04745,1910.3,1910.2,7.924]
[1743213671415,1.04751,1910.2,1910.1,3.367]
[1743213671720,1.04751,1910.2,1910.0,2.083]
[1743213671920,3.2078,1910.4,1910.0,1.42885094]
[1743213671921,2.50866,1910.1,1910.0,1.42885094]
[1743213672315,1.4611,1910.1,1910.0,2.47647094]
[1743213674723,1.4611,1910.1,1910.0,1.42885094]
[1743213676621,1.4611,1910.1,1910.0,2.09685094]
[1743213678224,2.50866,1910.1,1910.0,1.42885094]
[1743213678926,1.4611,1910.1,1910.0,2.47647094]
[1743213679128,1.4611,1910.1,1910.0,1.42885094]
[1743213679322,1.4611,1910.1,1910.0,2.47647094]
[1743213680519,2.50866,1910.1,1910.0,1.42885094]
[1743213680914,1.4611,1910.1,1910.0,2.47647094]
[1743213685329,0.00785094,1910.3,1910.2,1.04751]
[1743213685520,3.2078,1910.6,1910.5,1.04734]
[1743213685722,1.3639,1910.7,1910.6,1.04729]
[1743213685925,1.04716,1910.9,1910.6,3.20789]
[1743213686123,1.445,1910.8,1910.7,1.432]
[1743213686419,2.49218,1910.8,1910.7,1.432]
[1743213686725,5.70001,1910.8,1910.5,4.41531]
[1743213686926,3.06703,1910.7,1910.6,1.3799]
[1743213687122,2.0198,1910.7,1910.6,1.3799]
[1743213687328,2.0198,1910.7,1910.6,2.42719]
[1743213687626,3.8981,1911.0,1910.9,1.04712]
[1743213688324,4.5733,1911.0,1910.9,1.04712]
[1743213688631,4.5733,1911.0,1910.8,1.04714]
[1743213688930,4.5733,1911.0,1910.9,1.3799]
[1743213689229,4.5733,1911.0,1910.9,2.42702]
[1743213690531,2.751,1911.0,1910.9,2.42702]
[1743213691530,2.751,1911.0,1910.9,1.3799]
[1743213692132,3.79807,1911.0,1910.9,1.3799]
[1743213692627,1.0472,1910.8,1910.6,3.2078]
[1743213692831,1.3643,1910.7,1910.6,4.6758]
[1743213693133,2.0574,1910.7,1910.6,4.6758]
[1743213693832,2.0574,1910.7,1910.6,5.72309]
[1743213695838,2.0574,1910.7,1910.6,2.51529]
[1743213696637,2.0574,1910.7,1910.6,1.468]
[1743213696834,3.10463,1910.7,1910.6,1.468]
[1743213697037,2.0574,1910.7,1910.6,1.468]
[1743213698338,1.3643,1910.7,1910.6,1.468]
[1743213699132,2.41153,1910.7,1910.6,1.468]
[1743213699328,1.3643,1910.7,1910.6,1.468]
[1743213700126,2.41153,1910.7,1910.6,1.468]
[1743213700333,2.41153,1910.7,1910.5,5.12074]
[1743213700536,2.0731,1910.6,1910.5,6.46684]
[1743213701131,2.0731,1910.6,1910.5,3.09984]
[1743213701335,1.3804,1910.6,1910.5,3.09984]
[1743213704438,0.6927,1910.7,1910.6,1.04729]
[1743213704637,0.6927,1910.7,1910.6,3.11449]
[1743213704942,2.0246,1910.7,1910.6,3.11449]
[1743213705540,2.0246,1910.7,1910.2,3.2078]
[1743213705738,2.0246,1910.7,1910.3,4.7227]
[1743213705739,2.1314,1910.6,1910.3,4.7227]
[1743213706045,1.04743,1910.4,1910.3,4.7227]
[1743213706434,1.71513,1910.4,1910.3,4.7227]
[1743213706635,0.6677,1910.4,1910.3,5.77015]
[1743213707036,3.13,1910.4,1910.3,4.7227]
[1743213707443,1.04745,1910.3,1910.2,3.2078]
[1743213707642,2.46235,1910.3,1910.2,3.2078]
[1743213709041,1.4149,1910.3,1910.2,4.25531]
[1743213709345,1.4149,1910.3,1910.2,5.61011]
[1743213709747,2.46235,1910.3,1910.2,5.61011]
[1743213709951,2.46235,1910.3,1910.2,4.5626]
[1743213710144,2.46241,1910.3,1910.1,1.04755]
[1743213710339,2.1066,1910.2,1910.1,1.04755]
[1743213710545,2.1066,1910.2,1910.1,2.40235]
[1743213711948,3.15411,1910.2,1910.1,1.3548]
[1743213712744,2.1066,1910.2,1910.1,1.3548]
[1743213713043,2.1066,1910.2,1910.1,2.40236]
[1743213713640,3.15411,1910.2,1910.1,1.3548]
[1743213716240,2.1066,1910.2,1910.1,2.40236]
[1743213716544,2.61782,1911.0,1910.3,1.04742]
[1743213716545,3.2078,1910.6,1910.3,1.04742]
[1743213716744,4.25512,1910.6,1910.4,0.6709]
[1743213716951,1.4181,1910.5,1910.4,0.6709]
[1743213718754,2.46544,1910.5,1910.4,0.6709]
[1743213719250,1.4181,1910.5,1910.4,0.6709]
[1743213720454,1.4181,1910.5,1910.4,1.7183]
[1743213728066,2.46544,1910.5,1910.3,5.14551]
[1743213728358,2.46544,1910.5,1910.4,1.4022]
[1743213728564,4.6254,1910.7,1910.2,3.2078]
[1743213728752,1.04751,1910.2,1910.1,3.367]
[1743213729062,1.04756,1910.1,1910.0,6.58265094]
[1743213729259,2.44256,1910.1,1910.0,6.58265094]
[1743213729557,2.44256,1910.1,1910.0,3.21565094]
[1743213729759,2.44256,1910.1,1910.0,0.00785094]
[1743213731461,5.65036,1910.1,1910.0,0.00785094]
[1743213733455,1.0478,1909.7,1909.5,4.98296]
[1743213733660,1.0478,1909.7,1909.6,1.3612]
[1743213734549,2.4851,1909.7,1909.6,1.3612]
[1743213735158,1.04784,1909.6,1909.5,0.00785094]
[1743213735457,1.04784,1909.6,1909.5,1.36905094]
[1743213738559,1.4373,1909.7,1909.5,1.36905094]
[1743213738560,1.4373,1909.7,1909.5,2.41689094]
[1743213738762,1.04784,1909.6,1909.5,1.36905094]
[1743213738957,1.04784,1909.6,1909.5,0.00785094]
[1743213739159,1.4373,1909.7,1909.6,1.04784]
[1743213739357,1.05560094,1909.8,1909.6,1.74064]
[1743213739662,1.05561094,1909.8,1909.6,1.74063]
[1743213740059,1.04784,1909.6,1909.5,0.00785094]
[1743213741256,1.74804,1909.6,1909.5,0.00785094]
[1743213746665,1.04795,1909.4,1909.3,3.2078]
[1743213747054,1.04795,1909.4,1909.3,4.2558]
[1743213747254,1.74807,1909.6,1909.4,1.04794]
[1743213747459,1.04794,1909.5,1909.3,4.25577]
[1743213748058,2.37934,1909.5,1909.3,4.25577]
[1743213748253,1.04795,1909.4,1909.3,4.25577]
[1743213748465,1.3314,1909.5,1909.3,4.25577]
[1743213749055,1.72695,1909.4,1909.3,3.2078]
[1743213749865,1.72695,1909.4,1909.3,4.2558]
[1743213750166,1.72695,1909.4,1909.3,3.2078]
[1743213750759,1.72695,1909.4,1909.3,4.2558]
[1743213750967,1.72695,1909.4,1909.3,3.2078]
[1743213755672,1.048,1909.3,1909.2,0.00785094]
[1743213755970,2.4068,1909.3,1909.2,0.00785094]
[1743213765775,1.3588,1909.3,1909.2,0.00785094]
[1743213766078,1.3588,1909.3,1909.2,1.05591094]
[1743213766279,1.3588,1909.3,1909.2,1.75751094]
[1743213766780,2.4068,1909.3,1909.2,1.75751094]
[1743213767078,2.4068,1909.3,1909.2,0.70945094]
[1743213767271,2.4068,1909.3,1909.2,0.00785094]
[1743213776292,5.6146,1909.3,1909.2,0.00785094]
[1743213782999,2.4068,1909.3,1909.2,0.00785094]
[1743213783195,2.4068,1909.3,1909.2,0.71245094]
[1743213786104,1.4093,1909.6,1909.2,3.92025094]
[1743213786303,1.04792,1909.5,1909.3,3.18609]
[1743213786507,1.04792,1909.5,1909.4,1.4474]
[1743213788405,2.47472,1909.5,1909.4,1.4474]
[1743213790606,2.47472,1909.5,1909.4,2.49535]
[1743213790805,1.04792,1909.5,1909.4,2.49535]
[1743213791708,1.04792,1909.5,1909.4,1.4474]
[1743213794705,1.78282,1909.5,1909.4,1.4474]
[1743213795906,1.78282,1909.5,1909.4,2.49535]
[1743213796106,1.04792,1909.5,1909.4,2.49535]
[1743213796906,1.04792,1909.5,1909.4,1.4474]
[1743213797607,1.04792,1909.5,1909.4,2.49535]
[1743213797808,1.04792,1909.5,1909.4,1.4474]
[1743213799420,1.4153,1909.6,1909.5,1.04789]
[1743213799718,0.70945094,1909.8,1909.7,1.04778]
[1743213800012,1.75718094,1909.8,1909.7,1.04778]
[1743213800215,1.36165094,1909.8,1909.7,1.04778]
[1743213800416,2.40938094,1909.8,1909.7,1.77388]
[1743213801021,2.40938094,1909.8,1909.7,0.7261]
[1743213801413,2.40938094,1909.8,1909.7,2.0567]
[1743213802117,1.36165094,1909.8,1909.7,3.10448]
[1743213802419,0.00785094,1909.8,1909.7,3.10448]
[1743213802813,0.00785094,1909.8,1909.7,6.31228]
[1743213803014,0.00785094,1909.8,1909.7,3.10448]
[1743213806519,0.00785094,1909.8,1909.7,9.67828]
[1743213808315,1.6241,1910.2,1910.1,1.04756]
[1743213808619,1.3918,1910.3,1910.2,1.04751]
[1743213808821,1.4162,1910.4,1910.3,1.04745]
[1743213811509,2.46362,1910.4,1910.2,2.41144094]
[1743213812127,1.04745,1910.3,1910.2,0.00785094]
[1743213812324,4.97805,1910.3,1910.2,0.00785094]
[1743213813721,1.04767,1909.9,1909.8,3.366]
[1743213813922,1.04773,1909.8,1909.7,2.144]
[1743213814127,1.04773,1909.8,1909.7,1.4351]
[1743213814428,1.04778,1909.7,1909.5,5.07707]
[1743213814619,1.77058,1909.7,1909.5,6.51217]
[1743213814829,1.77058,1909.7,1909.5,6.52002094]
[1743213815618,1.77058,1909.7,1909.5,5.47215094]
[1743213816031,1.77058,1909.7,1909.5,6.52004094]
[1743213817433,1.77058,1909.7,1909.6,4.6463]
[1743213818736,1.77058,1909.7,1909.6,3.2078]
[1743213819327,1.77058,1909.7,1909.5,1.40065094]
[1743213819328,1.04784,1909.6,1909.5,1.40065094]
[1743213819534,1.75534,1909.6,1909.5,1.40065094]
[1743213820828,1.75534,1909.6,1909.5,0.00785094]
[1743213823135,1.048,1909.3,1909.2,4.5508]
[1743213824639,1.05584094,1909.4,1909.2,5.59886]
[1743213824935,1.05584094,1909.4,1909.3,1.3937]
[1743213826036,1.048,1909.3,1909.2,3.2078]
[1743213826227,1.7184,1909.3,1909.2,4.6015]
[1743213827136,1.04806,1909.2,1909.1,0.00785094]
[1743213828433,2.45246,1909.2,1909.1,0.00785094]
[1743213829040,2.45246,1909.2,1908.9,4.616]
[1743213829041,1.04817,1909.0,1908.9,4.616]
[1743213829433,2.45254,1909.1,1908.9,5.66419]
[1743213829636,1.78247,1909.0,1908.9,4.616]
[1743213829940,3.18687,1909.0,1908.9,4.616]
[1743213835739,2.1387,1909.0,1908.9,4.616]
[1743213835940,3.18687,1909.0,1908.9,5.66422]
[1743213836642,3.18687,1909.0,1908.9,4.616]
[1743213836838,0.1852,1909.1,1908.9,4.616]
[1743213837044,0.1852,1909.1,1909.0,2.51767]
[1743213837440,1.05584094,1909.4,1909.0,2.51767]
[1743213837751,1.05584094,1909.4,1909.2,1.04801]
[1743213838049,1.05584094,1909.4,1909.3,2.1849]
[1743213838345,2.39024094,1909.4,1909.3,2.1849]
[1743213839742,0.00785094,1909.4,1909.3,3.2329]
[1743213840942,0.19305094,1909.4,1909.3,3.2329]
[1743213845646,0.19305094,1909.4,1909.3,6.4407]
[1743213855256,1.3742,1909.8,1909.6,1.04782]
[1743213855451,2.42197,1909.8,1909.7,1.3288]
[1743213858762,1.04778,1909.7,1909.6,3.2078]
[1743213858962,2.43958,1909.7,1909.6,3.2078]
[1743213859360,2.43958,1909.7,1909.6,4.25564]
[1743213859558,2.43958,1909.7,1909.6,4.6534]
[1743213860360,2.43958,1909.7,1909.6,3.2078]
[1743213860768,2.43958,1909.7,1909.6,4.25564]
[1743213860956,2.43958,1909.7,1909.6,5.67354]
[1743213862562,2.43958,1909.7,1909.6,4.6257]
[1743213864570,1.04787,1909.6,1909.4,7.2885]
[1743213864769,3.12217,1909.6,1909.5,1.3514]
[1743213865661,3.12217,1909.6,1909.5,2.39929]
[1743213866566,3.12217,1909.6,1909.5,1.3514]
[1743213866764,2.0743,1909.6,1909.5,2.39929]
[1743213866970,1.3626,1909.6,1909.5,2.39929]
[1743213867264,1.75827094,1909.9,1909.8,1.04773]
[1743213867265,0.00785094,1909.9,1909.8,1.04773]
[1743213867472,0.00785094,1909.9,1909.8,4.25553]
[1743213867663,2.44302,1910.2,1910.0,1.04758]
[1743213867973,1.4211,1910.1,1910.0,1.04758]
[1743213868374,1.4211,1910.1,1910.0,4.41258]
[1743213869375,1.4211,1910.1,1909.9,0.00785094]
[1743213869567,4.25542,1910.0,1909.9,0.00785094]
[1743213883081,1.04762,1910.0,1909.9,0.00785094]
[1743213885581,1.40335094,1910.2,1909.9,3.21565094]
[1743213885781,1.40335094,1910.2,1910.0,2.43348]
[1743213885782,1.05539094,1910.2,1910.0,2.43348]
[1743213885980,0.00785094,1910.2,1910.1,2.43346]
[1743213887469,1.05536094,1910.2,1910.1,1.3859]
[1743213890079,1.05536094,1910.2,1910.1,2.43346]
[1743213892785,0.00785094,1910.2,1910.1,2.43346]
[1743213894379,1.05536094,1910.2,1910.1,2.43346]
[1743213894686,2.40366094,1910.2,1910.1,2.43346]
[1743213895881,1.35615094,1910.2,1910.1,2.43346]
[1743213896987,0.00785094,1910.2,1910.1,2.43346]
[1743213898586,1.05536094,1910.2,1910.1,2.43346]
[1743213899174,0.00785094,1910.2,1910.1,2.43346]
[1743213900088,2.39126094,1910.2,1910.1,2.43346]
[1743213902589,0.00785094,1910.2,1910.1,2.43346]
[1743213904280,1.38115094,1910.2,1910.1,2.43346]
[1743213904497,2.42866094,1910.2,1910.1,2.43346]
[1743213905598,2.42866094,1910.2,1910.1,1.3859]
[1743213905783,1.38115094,1910.2,1910.1,2.43346]
[1743213907295,0.00785094,1910.2,1910.1,2.43346]
[1743213910209,2.46096094,1910.2,1910.1,2.43346]
[1743213910798,1.41345094,1910.2,1910.1,2.43346]
[1743213910995,2.46096094,1910.2,1910.1,2.43346]
[1743213911698,1.41345094,1910.2,1910.1,2.43346]
[1743213911992,1.04762,1910.0,1909.9,0.00785094]
[1743213912896,2.41932,1910.0,1909.9,0.00785094]
[1743213915499,2.41932,1910.0,1909.9,1.05552094]
[1743213916100,2.41932,1910.0,1909.9,0.00785094]
[1743213916298,2.41932,1910.0,1909.9,1.40695094]
[1743213916994,2.41932,1910.0,1909.9,2.45462094]
[1743213917204,2.41932,1910.0,1909.9,1.40695094]
[1743213917496,1.3717,1910.0,1909.9,2.45462094]
[1743213917709,1.3717,1910.0,1909.9,1.40695094]
[1743213917903,2.41932,1910.0,1909.9,1.40695094]
[1743213918206,3.21565094,1910.2,1910.1,1.04756]
[1743213918502,0.00785094,1910.2,1910.1,1.04756]
[1743213918702,1.34855094,1910.2,1910.1,1.04756]
[1743213919095,1.34855094,1910.2,1910.1,1.74846]
[1743213920198,0.00785094,1910.2,1910.1,1.74846]
[1743213920402,0.00785094,1910.2,1910.1,2.48436]
[1743213921394,1.05536094,1910.2,1910.1,1.4368]
[1743213921598,2.41566094,1910.2,1910.1,1.4291]
[1743213921800,3.13096094,1910.2,1910.1,1.4291]
[1743213922407,1.04758,1910.1,1909.9,3.37085094]
[1743213922594,0.7347,1910.0,1909.9,1.05548094]
[1743213923098,2.095,1910.0,1909.9,1.05548094]
[1743213923299,2.095,1910.0,1909.9,2.48458094]
[1743213924901,1.3603,1910.0,1909.9,2.48458094]
[1743213927004,1.3603,1910.0,1909.9,5.69238094]
[1743213927211,0.72315094,1910.2,1910.1,1.04756]
[1743213927407,0.00785094,1910.2,1910.1,1.04756]
[1743213927606,0.00785094,1910.2,1910.1,2.37646]
[1743213927906,0.00785094,1910.2,1910.1,5.73846]
[1743213928805,1.38395094,1910.2,1910.1,5.73846]
[1743213929710,0.00785094,1910.2,1910.1,5.73846]
[1743213932912,1.41825094,1910.2,1910.1,5.73846]
[1743213935417,2.46576094,1910.2,1910.1,5.73846]
[1743213935718,1.04756,1910.1,1910.0,4.25542]
[1743213935906,2.51846,1910.1,1910.0,4.25542]
[1743213936411,1.4709,1910.1,1910.0,4.25542]
[1743213940617,1.4709,1910.1,1910.0,4.98192]
[1743213944323,0.00785094,1910.2,1910.1,1.04756]
[1743213944616,0.00785094,1910.2,1910.1,2.43156]
[1743213944819,2.50886094,1910.2,1910.1,2.43156]
[1743213949528,2.50886094,1910.2,1910.1,1.384]
[1743213949712,2.50886094,1910.2,1910.1,2.43156]
[1743213951125,1.46135094,1910.2,1910.1,2.43156]
[1743213952225,1.46135094,1910.2,1910.1,5.79256]
[1743213953515,0.00785094,1910.2,1910.1,5.79256]
[1743213954923,1.41675094,1910.2,1910.1,5.79256]
[1743213957233,0.00785094,1910.2,1910.1,5.79256]
[1743213958832,1.34365094,1910.2,1910.1,5.79256]
[1743213960734,0.00785094,1910.2,1910.1,5.79256]
[1743213962436,0.7265,1910.5,1910.4,1.0474]
[1743213962629,2.1517,1910.5,1910.4,4.2552]
[1743213963345,2.1517,1910.5,1910.4,5.6777]
[1743213966545,3.19904,1910.5,1910.4,5.6777]
[1743213966748,2.1517,1910.5,1910.4,5.6777]
[1743213967841,3.19904,1910.5,1910.4,5.6777]
[1743213968037,3.89734,1910.5,1910.4,5.6777]
[1743213968432,3.89734,1910.5,1910.4,3.2078]
[1743213970850,3.89734,1910.5,1910.4,4.2552]
[1743213971039,3.89734,1910.5,1910.4,3.2078]
[1743213971346,3.89734,1910.5,1910.3,4.40842]
[1743213971548,1.4037,1910.4,1910.3,4.40842]
[1743213971847,1.4037,1910.4,1910.3,5.76112]
[1743213976152,2.4511,1910.4,1910.3,5.76112]
[1743213977248,1.4037,1910.4,1910.3,5.76112]
[1743213978244,2.4511,1910.4,1910.3,4.7137]
[1743213978648,2.4511,1910.4,1910.3,3.361]
[1743213978950,2.4511,1910.4,1910.3,4.40845]
[1743213979144,2.4511,1910.4,1910.3,3.361]
[1743213979353,1.4037,1910.4,1909.9,10.41349094]
[1743213979544,1.04758,1910.1,1910.0,1.04762]
[1743213980060,1.04758,1910.1,1909.9,5.88149094]
[1743213980244,1.4608,1910.0,1909.9,2.52149094]
[1743213980445,1.4608,1910.0,1909.9,5.88149094]
[1743213980751,1.4608,1910.0,1909.9,1.05549094]
[1743213980951,1.4608,1910.0,1909.9,4.41549094]
[1743213981257,2.50842,1910.0,1909.9,0.00785094]
[1743213984952,2.50842,1910.0,1909.4,3.36]
[1743213984953,1.04789,1909.5,1909.4,3.36]
[1743213985154,1.04789,1909.5,1909.3,1.04796]
[1743213985358,3.88096,1909.4,1909.2,5.75282]
[1743213985554,1.3791,1909.3,1909.2,5.75282]
[1743213987051,1.46175094,1909.4,1909.3,1.048]
[1743213987249,6.5678,1910.0,1909.3,7.26791]
[1743213987457,2.42686,1909.8,1909.6,1.04781]
[1743213987644,1.04776,1909.8,1909.7,1.4401]
[1743213991859,1.04783,1909.7,1909.5,8.30536]
[1743213992161,1.75064,1909.6,1909.5,8.5858]
[1743213992653,0.7028,1909.6,1909.5,9.63369]
[1743213992856,1.75064,1909.6,1909.5,8.5858]
[1743213993052,1.75064,1909.6,1909.5,4.5361]
[1743213994062,1.75064,1909.6,1909.5,5.58399]
[1743213994748,1.75064,1909.6,1909.5,4.5361]
[1743213997657,1.75064,1909.6,1909.5,1.3283]
[1743213998457,0.7028,1909.6,1909.3,4.25578]
[1743213998762,1.04795,1909.4,1909.3,4.6068]
[1743213998959,1.04795,1909.4,1909.3,1.399]
[1743213999163,2.38845,1909.4,1909.3,1.399]
[1743214000058,1.04806,1909.2,1909.1,0.00785094]
[1743214000762,2.46046,1909.2,1909.1,0.00785094]
[1743214000962,1.4124,1909.2,1909.1,0.00785094]
[1743214001162,0.6976,1909.5,1909.1,1.47075094]
[1743214001367,1.4124,1909.4,1909.3,1.048]
[1743214001560,2.46039,1909.4,1909.2,2.44754]
[1743214002265,1.4124,1909.4,1909.2,2.44754]
[1743214002468,1.048,1909.3,1909.2,2.44754]
[1743214003270,1.048,1909.3,1909.2,1.3995]
[1743214004368,2.46039,1909.4,1909.2,1.3995]
[1743214004664,1.04802,1909.3,1909.1,1.05591094]
[1743214004871,1.4199,1909.2,1909.1,1.05591094]
[1743214005061,2.1359,1909.2,1909.1,1.05591094]
[1743214005559,2.8363,1909.2,1909.1,1.05591094]
[1743214006565,1.04798,1909.4,1909.2,1.04803]
[1743214006869,2.0927,1909.4,1909.3,1.048]
[1743214007068,1.4252,1909.4,1909.3,1.7165]
[1743214007273,1.71534,1909.6,1909.3,0.6685]
[1743214007463,2.0927,1909.6,1909.4,3.2078]
[1743214007659,3.14057,1909.6,1909.4,4.25572]
[1743214007857,2.47307,1909.6,1909.4,4.25572]
[1743214008073,2.47307,1909.6,1909.4,4.25573]